Cogmind - Beta 14 @@@ ROGUE MODE // 2024.11.22 @ 15:24:26 Player: Prominous Vale Result: Self-destructed Performance ------------- Evolutions (2) 1000 Regions Visited (5) 1000 Robots Destroyed (22) 110 Value Destroyed (529) 529 Prototype IDs (1) 20 Alien Tech Used (0) 0 Bonus (305) 305 TOTAL SCORE: 2964 Bonus ------- Follower Combat Kills 305 Cogmind --------- Core Integrity 464/550 Matter 300/300 Energy 220/220 System Corruption 0% Temperature Warm (108) Movement Treading (152) Location -8/Materials Parts ------- > --- POWER (2) -------- Light Nuclear Core Light Nuclear Core > --- PROPULSION (3) --- Light Treads Advanced Treads > --- UTILITY (4) ------ Small Storage Unit Structural Scanner Hardlight Generator Hacking Suite > --- WEAPON (2) ------- Heavy Particle Gun Datajack > --- INVENTORY (8) ---- Improved Ion Engine Improved Terrain Scanner EM Pulse Gun Particle Gun EM Pulse Cannon Light Assault Rifle Grenade Launcher Mining Laser Peak State ------------ > --- POWER ------------ Light Nuclear Core Light Nuclear Core > --- PROPULSION ------- Light Treads Advanced Treads > --- UTILITY ---------- Small Storage Unit Structural Scanner Hardlight Generator Hacking Suite > --- WEAPON ----------- Heavy Particle Gun Datajack > --- INVENTORY -------- Improved Ion Engine Improved Terrain Scanner EM Pulse Gun Particle Gun EM Pulse Cannon Light Assault Rifle Grenade Launcher Mining Laser [Rating: 24] Favorites ----------- Power Ion Engine Engine Ion Engine Power Core Light Nuclear Core Propulsion Light Treads Treads Light Treads Utility Small Storage Unit Device Structural Scanner Storage Small Storage Unit Processor Signal Interpreter Hackware Hacking Suite Weapon Assault Rifle Energy Gun EM Pulse Gun Energy Cannon Beam Cannon Ballistic Gun Assault Rifle Launcher Grenade Launcher Special Melee Weapon Datajack Build | -11 -10 -10 -9 -9 -8 ------- Run | Yrd Mat Min Mat Min Mat Slots Evolved 4 | . . . 2 . 2 Power 1 | . . . . . 1 Propulsion 1 | . . . 1 . . Utility 2 | . . . 1 . 1 Weapon . | . . . . . . Parts Attached 38 | 7 8 4 7 . 12 Power 6 | 1 1 . 1 . 3 Engine 3 | 1 1 . 1 . . Core 3 | . . . . . 3 Reactor . | . . . . . . Propulsion 6 | 2 1 . 1 . 2 Treads 6 | 2 1 . 1 . 2 Leg . | . . . . . . Wheel . | . . . . . . Hover . | . . . . . . Flight . | . . . . . . Utility 9 | 2 3 1 1 . 2 Device 6 | 2 1 1 . . 2 Storage 1 | . 1 . . . . Processor 1 | . 1 . . . . Hackware 1 | . . . 1 . . Protection . | . . . . . . Artifact . | . . . . . . Weapon 17 | 2 3 3 4 . 5 Energy Gun 2 | . 1 . . . 1 Energy Cannon 4 | . . 1 2 . 1 Ballistic Gun 5 | 2 2 . . . 1 Ballistic Cannon . | . . . . . . Launcher 3 | . . 1 1 . 1 Special Weapon . | . . . . . . Impact Weapon . | . . . . . . Slashing Weapon . | . . . . . . Piercing Weapon . | . . . . . . Special Melee Weapon 3 | . . 1 1 . 1 Unidentified Prototypes 1 | . . . . . 1 Parts Lost 2 | . 1 . . . 1 Power . | . . . . . . Propulsion 1 | . . . . . 1 Utility . | . . . . . . Weapon 1 | . 1 . . . . Highest Loss Streak 1 | . 1 . . . 1 To Critical Strikes . | . . . . . . Average Slot Usage (%) 98 | . 99 100 89 100 95 Engine 11 | . 14 14 11 11 2 Core 2 | . . . . . 13 Treads 27 | . 28 28 23 33 25 Device 10 | . 13 1 11 11 16 Storage 11 | . 11 14 11 11 9 Processor 3 | . 2 12 . . . Hackware 3 | . . . 10 11 9 Energy Cannon 4 | . . 13 6 . 2 Ballistic Gun 9 | . 26 . . . . Launcher 5 | . . 14 5 11 4 Special Melee Weapon 4 | . . . 10 11 9 Peak Build Rating 24 | 9 9 8 13 13 24 Average Rating 10 | 6 8 8 11 13 20 On Entrance 8 | . 9 7 8 13 13 Naked Turns . | . . . . . . Heaviest Build 27 | 9 15 17 17 17 27 Greatest Support 62 | 40 40 40 60 60 62 Greatest Overweight (x) . | . . . . . . Average Overweight (x) . | . . . . . . Largest Inventory Capacity 8 | 5 8 8 8 8 8 Average Capacity 7 | 5 7 8 8 8 8 Most Carried 8 | 5 8 8 8 8 8 Average Carried 7 | 3 7 7 7 8 7 Final Capacity 8 | 5 8 8 8 8 8 Final Carried 8 | 5 8 7 8 8 8 Class Distribution -------------------- 66% | Mutant 33% | Scavenger-Mutant Dominant Class ---------------- Mutant | -10/Materials Mutant | -10/Mines Mutant | -9/Materials Scavenger-Mutant | -9/Mines Scavenger-Mutant | -8/Materials Resources | -11 -10 -10 -9 -9 -8 ----------- Run | Yrd Mat Min Mat Min Mat Matter Collected 953 | 327 353 48 110 . 115 Remotely . | . . . . . . Salvage Created 738 | 137 480 31 36 . 54 Parts 56 | 13 39 . 3 . 1 Haulers Intercepted 1 | . 1 . . . . Recyclers Shooed 1 | . . . . . 1 Parts Field Recycled . | . . . . . . Retrieved Matter . | . . . . . . Parts Self-Destructed . | . . . . . . Prevented . | . . . . . . Kills | -11 -10 -10 -9 -9 -8 ------- Run | Yrd Mat Min Mat Min Mat Combat Hostiles Destroyed 13 | . 10 1 1 . 1 Guns 10 | . 10 . . . . Cannons 2 | . . . 1 . 1 AOE 1 | . . 1 . . . Classes Destroyed 7 | 2 5 . . . . Tunneler 3 | 3 . . . . . Hauler 1 | . 1 . . . . Recycler 2 | 1 1 . . . . Operator 1 | . 1 . . . . Watcher 2 | . 2 . . . . Swarmer 3 | . 3 . . . . Grunt 10 | . 7 1 1 . 1 Best Kill Streak 5 | 1 5 1 1 . 1 Combat Bots Only 3 | . 3 1 1 . 1 Max Kills in Single Turn 2 | 1 2 1 1 . 1 Gunslinging 1 | . 1 . . . . Exploded 1 | . . 1 . . . Melee . | . . . . . . Uniques/NPCs Destroyed . | . . . . . . Combat | -11 -10 -10 -9 -9 -8 -------- Run | Yrd Mat Min Mat Min Mat Hostile Shots Fired 132 | . 77 8 5 . 42 Missed 35 | . 17 3 4 . 11 Damage Taken 1159 | . 643 94 26 . 396 Core 249 | . 135 14 14 . 86 Absorbed by Shields 124 | . . . . . 124 Core Remaining (%) 78 | 100 . 40 . 96 . Volleys Fired 102 | 13 52 4 8 . 25 Largest 2 | 2 2 2 1 . 1 Hottest 90 | 40 60 90 60 . 68 Shots Fired 160 | 19 102 6 8 . 25 Gun 129 | 19 102 . . . 8 Cannon 27 | . . 3 7 . 17 Launcher 4 | . . 3 1 . . Special . | . . . . . . Kinetic 117 | 19 96 . . . 2 Thermal 33 | . . 3 7 . 23 Explosive 4 | . . 3 1 . . Electromagnetic 6 | . 6 . . . . Robot Hit Streak 9 | 4 8 2 6 . 9 Robot Miss Streak 5 | 2 4 . 2 . 5 Penetration Max . | . . . . . . Secondary Targets 4 | . 4 . . . . Max Gunslinging Chain 1 | . 1 . . . . Shots Hit Robots 98 | 11 59 2 6 6 14 Core Hits 43 | 5 28 2 3 . 5 Critical Kills . | . . . . . . Critical Parts Destroyed 1 | . 1 . . . . Critical Strikes 1 | . 1 . . . . Destroy 1 | . 1 . . . . Melee Attacks 8 | . . . 1 6 1 Impact . | . . . . . . Slashing . | . . . . . . Piercing . | . . . . . . Sneak Attacks 7 | . . . . 6 1 Combat Hostiles . | . . . . . . Follow-up Attacks . | . . . . . . Damage Inflicted 1457 | 136 767 148 131 . 275 Guns 993 | 136 767 . . . 90 Cannons 293 | . . 18 111 . 164 Explosions 150 | . . 130 20 . . Melee . | . . . . . . Ramming 21 | . . . . . 21 Kinetic 865 | 136 729 . . . . Thermal 472 | . . 107 111 . 254 Explosive 61 | . . 41 20 . . Electromagnetic 38 | . 38 . . . . Impact . | . . . . . . Slashing . | . . . . . . Piercing . | . . . . . . Highest Corruption . | . . . . . . Average Corruption . | . . . . . . Corruption Purged . | . . . . . . Corruption Blocked . | . . . . . . Overload Shots . | . . . . . . Overflow Damage . | . . . . . . Projectiles . | . . . . . . Explosions . | . . . . . . Melee . | . . . . . . Knockbacks . | . . . . . . Impact . | . . . . . . Kinetic . | . . . . . . Secondary . | . . . . . . Self-Inflicted Damage 26 | . . 26 . . . Shots 2 | . . 2 . . . Rammed 3 | . . . . . 3 Targets Rammed 3 | . . . . . 3 Kicked . | . . . . . . Crushed . | . . . . . . Highest Temperature 284 | . 2 30 62 . 284 Average Temperature 102 | . 2 16 26 . 132 Received Heat Transfer 570 | . 276 39 15 . 240 Siege Activations . | . . . . . . Robots Corrupted . | . . . . . . Combat Hostiles . | . . . . . . Parts Fried . | . . . . . . Impact Corruptions . | . . . . . . Robots Melted . | . . . . . . Combat Hostiles . | . . . . . . Parts Melted . | . . . . . . Heat Transferred 840 | . . 137 222 . 481 Parts Sabotaged . | . . . . . . Parts Stolen . | . . . . . . Parts Stripped . | . . . . . . Power Chain Reactions . | . . . . . . Alert | -11 -10 -10 -9 -9 -8 ------- Run | Yrd Mat Min Mat Min Mat Peak Influence 266 | 20 245 187 266 103 147 Initial 103 | . 13 33 1 103 39 Average 75 | 13 102 34 114 103 64 Maximum Alert Level 1 | . 1 . 1 . . Low Security (%) 97 | 100 98 100 79 100 100 Level 1 2 | . 1 . 20 . . Level 2 . | . . . . . . Level 3 . | . . . . . . Level 4 . | . . . . . . Level 5 . | . . . . . . High Security . | . . . . . . Max Security . | . . . . . . Squads Dispatched 5 | . 2 . 1 . 2 Investigation . | . . . . . . Extermination . | . . . . . . Reinforcement 5 | . 2 . 1 . 2 Assault . | . . . . . . Garrison . | . . . . . . Intercept . | . . . . . . Searches Triggered . | . . . . . . Construction Impeded . | . . . . . . Haulers Reinforced . | . . . . . . Active Scanning Responses . | . . . . . . Cargo Convoy Interrupts . | . . . . . . Stealth | -11 -10 -10 -9 -9 -8 --------- Run | Yrd Mat Min Mat Min Mat Distress Signals . | . . . . . . Communications Jammed . | . . . . . . Distress Signals . | . . . . . . Times Spotted 51 | . 21 8 7 . 15 Peak Tracking Total 6 | . 4 4 4 . 6 Tactical Retreats 1 | . 1 . . . . Traps | -11 -10 -10 -9 -9 -8 ------- Run | Yrd Mat Min Mat Min Mat Traps Triggered 1 | . . . . . 1 Indirectly . | . . . . . . Trap Hack Attempts . | . . . . . . Triggered . | . . . . . . Disarmed . | . . . . . . Reprogrammed . | . . . . . . Reused . | . . . . . . Traps Extracted . | . . . . . . Installed . | . . . . . . Triggered . | . . . . . . Machines | -11 -10 -10 -9 -9 -8 ---------- Run | Yrd Mat Min Mat Min Mat Machines Disabled 5 | . . 2 3 . . Max in Single Turn 1 | . . 1 . . . Machines Repaired . | . . . . . . Machines Dismantled . | . . . . . . Machines Sabotaged . | . . . . . . Overloaded Fab Kills . | . . . . . . Hacking | -11 -10 -10 -9 -9 -8 --------- Run | Yrd Mat Min Mat Min Mat Machines Accessed 6 | . 4 . 1 . 1 Terminals 6 | . 4 . 1 . 1 Fabricators . | . . . . . . Repair Stations . | . . . . . . Recycling Units . | . . . . . . Scanalyzers . | . . . . . . Garrison Access . | . . . . . . Total Hacks 14 | . 8 . 2 . 4 Successful 5 | . 3 . 1 . 1 Failed 9 | . 5 . 1 . 3 Catastrophic 2 | . 1 . . . 1 Database Lockouts . | . . . . . . Manual 11 | . 5 . 2 . 4 Terminals 14 | . 8 . 2 . 4 Fabricators . | . . . . . . Repair Stations . | . . . . . . Recycling Units . | . . . . . . Scanalyzers . | . . . . . . Garrison Access . | . . . . . . Terminal Hacks 5 | . 3 . 1 . 1 Robot Analysis 2 | . 2 . . . . Branch Access Points 2 | . . . 1 . 1 Emergency Access Points 1 | . 1 . . . . Fabricator Hacks . | . . . . . . Repair Station Hacks . | . . . . . . Recycling Unit Hacks . | . . . . . . Scanalyzer . | . . . . . . Garrison Access Hacks . | . . . . . . Unauthorized Hacks . | . . . . . . Terminals . | . . . . . . Fabricators . | . . . . . . Repair Stations . | . . . . . . Recycling Units . | . . . . . . Scanalyzers . | . . . . . . Garrison Access . | . . . . . . Data Cores Recovered . | . . . . . . Used . | . . . . . . Hacking Detections 6 | . 4 . 1 . 1 Full Trace Events . | . . . . . . Feedback Events . | . . . . . . Feedback Blocked . | . . . . . . Robot Schematics Acquired . | . . . . . . Robots Built . | . . . . . . Authchips . | . . . . . . Time . | . . . . . . Total Robot Build Rating . | . . . . . . Part Schematics Acquired . | . . . . . . Parts Built . | . . . . . . Authchips . | . . . . . . Time . | . . . . . . Total Part Build Rating . | . . . . . . Parts Repaired . | . . . . . . Time . | . . . . . . Parts Recycled . | . . . . . . Recycled Matter . | . . . . . . Retrieved Matter . | . . . . . . Retrieved Components . | . . . . . . Parts Scanalyzed . | . . . . . . Part Schematics Acquired . | . . . . . . Parts Damaged . | . . . . . . Bothacking | -11 -10 -10 -9 -9 -8 ------------ Run | Yrd Mat Min Mat Min Mat Used RIF Installer . | . . . . . . Robots Hacked 2 | . . . . 2 . Non-combat 2 | . . . . 2 . Combat . | . . . . . . Robot Hacks Applied 2 | . . . . 2 . parse_system 1 | . . . . 1 . no_distress 1 | . . . . 1 . Relay Couplers Released . | . . . . . . Fabnet Peak Effective % . | . . . . . . Robots Rewired . | . . . . . . Allies Hacked . | . . . . . . Hacks Repelled . | . . . . . . Allies | -11 -10 -10 -9 -9 -8 -------- Run | Yrd Mat Min Mat Min Mat Total Allies 5 | . . 5 . . . Largest Group 4 | . . 4 4 4 3 Highest-Rated Group 71 | . . 71 71 71 55 Highest-Rated Ally 31 | . . 31 31 31 31 Total Orders 3 | . . . 1 . 2 ROAM 1 | . . . . . 1 GUARD 1 | . . . 1 . . AID 1 | . . . . . 1 Ally Attacks 74 | . . 16 35 . 23 Total Damage 902 | . . 273 375 . 254 Kills 18 | . . 8 6 . 4 Allies Corrupted . | . . . . . . Allies Melted . | . . . . . . Intel | -11 -10 -10 -9 -9 -8 ------- Run | Yrd Mat Min Mat Min Mat Robot Analysis Total 2 | . 2 . . . . Derelict Logs Recovered . | . . . . . . Drone Launches . | . . . . . . Drone Recoveries . | . . . . . . Exploration | -11 -10 -10 -9 -9 -8 ------------- Run | Yrd Mat Min Mat Min Mat Turns Passed 2701 | 282 922 540 228 331 398 Spaces Moved 1360 | 105 455 322 114 202 162 Core 13 | 13 . . . . . Treads 1347 | 92 455 322 114 202 162 Legs . | . . . . . . Wheels . | . . . . . . Hover . | . . . . . . Flight . | . . . . . . Fastest Speed 50 | 50 160 160 160 160 152 Average Speed 158 | 146 160 160 160 160 155 Slowest Speed 160 | 160 160 160 160 160 160 Overloaded Moves . | . . . . . . Propulsion Burnouts . | . . . . . . Robots Hopped . | . . . . . . Cave-ins Triggered . | . . . . . . Exploration Rate (%) 41 | 5 71 86 17 53 18 Regions Visited 5 Branch Regions 2 Pre-discovered Areas . | . . . . . . Known Exits Taken 3 | . 1 1 1 . . Unknown Exits Taken 2 | 1 . . . 1 . Scrap Searched . | . . . . . . Spaces Dug 13 | . . 13 . . . Terrain Destroyed 34 | . . 31 3 . . Melee . | . . . . . . Projectile . | . . . . . . AOE 34 | . . 31 3 . . Terrain Rammed . | . . . . . . Walls Destroyed . | . . . . . . Machines Disabled . | . . . . . . Actions | -11 -10 -10 -9 -9 -8 --------- Run | Yrd Mat Min Mat Min Mat Total 1734 | 214 547 339 149 207 278 Wait 187 | 78 16 9 15 . 69 Move 1355 | 104 454 321 113 201 162 Hop . | . . . . . . Pick Up 28 | 12 9 1 3 . 3 Fast Attach 8 | . 2 . 2 . 4 Attach 11 | 7 . 1 1 . 2 Detach . | . . . . . . Swap 19 | . 6 3 4 . 6 Drop 13 | . 8 . 2 . 3 Fire 102 | 13 52 4 8 . 25 Melee 8 | . . . 1 6 1 Ram . | . . . . . . Kick . | . . . . . . Crush 3 | . . . . . 3 Escape Stasis . | . . . . . . Rewire . | . . . . . . Trap . | . . . . . . Miscellaneous . | . . . . . . Route ------- -11/Scrapyard -10/Materials (discovered 3 exits: *Mat x2 / *Min) -10/Mines (discovered 2 exits: *Mat x2) -9/Materials (discovered 2 exits: *Min x2) -9/Mines (discovered 2 exits: *Mat x2) -8/Materials (discovered 1 exit: Sto) History --------- Turn | Location | Event 10 | -11/Scrapyard | Discovered new exit (range 14) 283 | -11/Scrapyard | Entered Materials 303 | -10/Materials | Build established: Mutant 509 | -10/Materials | Discovered new exit (range 6) 687 | -10/Materials | Discovered new exit (range 11) 1003 | -10/Materials | Discovered new exit (range 15) 1029 | -10/Materials | Identified exit to Materials 1170 | -10/Materials | Identified exit to Mines 1199 | -10/Materials | Core integrity fell below 50% 1205 | -10/Materials | Entered Mines 1206 | -10/Mines | Assembled infested the area 1344 | -10/Mines | Discovered exit to Materials (range 15) 1714 | -10/Mines | Discovered exit to Materials (range 15) 1737 | -10/Mines | Assisted by bots powering up and referring to "LRC-V3" 1745 | -10/Mines | Entered Materials 1745 | -9/Materials | Accompanied by 4 allies 1745 | -9/Materials | Evolved 2 slots: Propulsion x1, Utility x1 1750 | -9/Materials | Led the pair of lost Derelicts to an unsafe place 1804 | -9/Materials | Identified exit to Mines 1973 | -9/Materials | Entered Mines 1973 | -9/Mines | Accompanied by 4 allies 2096 | -9/Mines | Discovered new exit (range 14) 2181 | -9/Mines | Discovered new exit (range 12) 2234 | -9/Mines | Build established: Scavenger-Mutant 2304 | -9/Mines | Entered Materials 2304 | -8/Materials | Accompanied by 3 allies 2304 | -8/Materials | Evolved 2 slots: Power x1, Utility x1 2395 | -8/Materials | Identified exit to Storage 2702 | -8/Materials | Self-destructed Last Messages --------------- L-31 Rogue destroyed. G-47 Trooper destroyed. U4-3JV(g) destroyed. Critical hit (Burn: +28). Lgt. Treads destroyed. G-47 Trooper suffers critical hit (Burn). G-47 Trooper destroyed. Dropped Lgt. Nuclear Core. K-01 Serf collects debris. R-06 Scavenger collects Core Shielding. K-01 Serf collects debris. R-06 Scavenger collects Particle Gun. K-01 Serf collects debris. Dropped Particle Cannon. Acquired Prototype Energy Gun. Identified Hvy. Particle Gun. Terminal disabled. K-01 Serf destroyed. Extracted 27 matter. R-06 Scavenger collects Med. Matter Pod. Map ----- +----------------------------------------------------+ | # ??????????????????????????????????????????????? | | # ??????????????????????????????????????????????? | | + ??????????????????????????????????????????????? | | # ??????????????????????????????????????????????? | | # ??????????????????????????????????????????????? | | # ??????????????????????????????????????????????? | | ##??????????????????????????????????????????????? | | ##??????????????????????????????????????????????? | | ##??????????????????????????????????????????????? | | ##??????????????????????????????????????????????? | | ##??????????????????????????????????????????????? | | ##????????????????????###???????????????????????? | | ##???????????????????? ##???????????????????????? | | ###???????????????? ?? ???????????????????????? | | ###??????????????? ??? ???????????????????????? | | ##????????????????" """ "T?????????????????????? | | ##??????????????""" """ ????????????????????? | | ##???????????????"" """ ????????????????????? | | ##???????????????? ?????????????????????? | | ##???????????????? ??????????????????????? | | ##????????????????? ! ???????????????????????? | | ##????????????????? ### ?????????????? | | ##?????????????????## ############?????????????? | | ##????????#####"""### # ##?????????????? | | ##################### # = ##?????????????? | | ############ #### #@r ##?????????????? | | % = % % =%!!% #gg g ##?????????????? | | ############ [%= + """g""" ##?????????????? | | ############ % * # """ """ ##?????????????? | | ############ ########r""" """ ##?????????????? | | ############# ######### g #??????????????? | | + """ # ###????############??????????????? | | ######= "Y" # ##?????############??????????????? | | ###### " " + ##???????????????????????????????? | | ????## # ##???????????????????????????????? | | ????## = # ##???????????????????????????????? | | ##??## # ##???????????????????????????????? | | ##??##############???????????????????????????????? | | ##??##############???????????????????????????????? | | ##???????????????????????????????????????????????? | | ##???????????????????????????????????????????????? | | ##???????????????????????????????????????????????? | | | | | | | | | | | | | | | | | +----------------------------------------------------+ Best States ------------- Heat Dissipation 31 Energy Generation 23 Energy Capacity 325 Matter Stores 300 Matter Capacity 300 Sight Range 16 Terrain Scan Range 16 Terrain Scan Density 10 Evasion (%) 50 Recoil Reduction 3 Offensive Hacking 10 Item Schematics ----------------- None Robot Schematics ------------------ None Fabricated ------------ Nothing Alien Tech Used ----------------- None Achievements -------------- None Challenges ------------ None Game ------ Seed Petra Manual? 1 Play Time 00:36:13 Cumulative 17.4 hours Start 2024.11.21 @ 16:00:16 End 2024.11.22 @ 15:24:26 Sessions 3 Manual Loads 0 Difficulty Rogue Special Mode None Game No. 31 Rogue 31 Adventurer 0 Explorer 0 Win Type - Total 0 Types 0/0/0/0/0/0/0/0/0 Lore% 13 Gallery% 22 Achievement% 18 Wizard Run 0 Options --------- Layout 1 ASCII 0 Keyboard 0 Movement Mouse Keybinds 0 Fullscreen 1 Font 24/Smallcaps Map View 50x35 Zoom Use 0% Tactical HUD 0 Map Filters NONE Filters NONE Steam 1 RUN: 18637868-fb12-420b-a2bb-2f733b008f91